Cogmind - Beta 9.6 @@@ ROGUE MODE // 2020.08.26 @ 18:22:16 Player: Cracklepappy Result: Destroyed by Y-64 Sentinel with KE Penetrator Performance ------------- Evolutions (6) 3000 Regions Visited (14) 2800 Robots Destroyed (108) 540 Value Destroyed (5215) 5215 Prototype IDs (15) 300 Alien Tech Used (0) 0 Bonus (1597) 1597 TOTAL SCORE: 13452 Bonus ------- High Alert Combat Kills 127 Follower Combat Kills 106 Entered Garrisons 400 Used RIF Installer 1000 Friendly Fire -36 Cogmind --------- Core Integrity 0/1150 Matter 175/300 Energy 8/100 System Corruption 5% Temperature Cool (10) Movement Flying (37) Location -4/Factory Parts ------- > --- POWER (2) -------- (None) > --- PROPULSION (4) --- Nuclear Pulse Array Field Propulsion Array > --- UTILITY (11) ----- Advanced Signal Interpreter > --- WEAPON (2) ------- Chainsword > --- INVENTORY (4) ---- Large Storage Unit Relay Coupler [NC] (26) Enhanced Coil Gun Peak State ------------ > --- POWER ------------ Light Antimatter Reactor Light Antimatter Reactor > --- PROPULSION ------- Armored Medium Treads Armored Medium Treads Heavy Treads > --- UTILITY ---------- Experimental Thermal Converter Advanced Heat Sink Advanced Heat Sink High-capacity Storage Unit Advanced Signal Interpreter Advanced Terrain Scan Processor Improved Target Analyzer Improved Core Analyzer Quantum Capacitor Improved Phase Shifter > --- WEAPON ----------- Heavy Wave Gun KE Penetrator > --- INVENTORY -------- Light Quantum Reactor Improved Treads Armored Medium Treads Armored Medium Treads Energy Well Advanced Signal Interpreter Advanced ECM Suite Relay Coupler [NC] Relay Coupler [NC] Enhanced Coil Gun Improved Remote Datajack Chainsword [Rating: 115] Favorites ----------- Power Improved Deuterium Engine Engine Improved Deuterium Engine Power Core Micro Fission Core Reactor Light Antimatter Reactor Propulsion Light Treads Treads Light Treads Leg Carbon-fiber Leg Wheel Compact Wheel Hover Unit Antigrav System Flight Unit Nuclear Pulse Thruster Utility Advanced Heat Sink Device Advanced Heat Sink Storage Large Storage Unit Processor Advanced Terrain Scan Processor Hackware System Shield Protection Improved Light Armor Plating Weapon Force Rifle Energy Gun Force Rifle Energy Cannon Plasma Cannon Ballistic Gun Assault Rifle Ballistic Cannon Enhanced Gauss Cannon Launcher Rocket Launcher Special Weapon Mining Laser Slashing Weapon Chainsword Build | -11 -10 -10 -10 -9 -8 -7 -7 -7 -6 -6 -6 -6 -5 -4 ------- Run | Scr Mat Min Exi Min Mat Fac Was Fac Fac Gar Fac Gar Fac Fac Slots Evolved 12 | . . . . . 4 2 . . 2 . . . 2 2 Power 1 | . . . . . . 1 . . . . . . . . Propulsion 2 | . . . . . . 1 . . . . . . 1 . Utility 9 | . . . . . 4 . . . 2 . . . 1 2 Weapon . | . . . . . . . . . . . . . . . Parts Attached 233 | 7 4 1 2 5 10 2 5 15 8 26 10 19 61 58 Power 25 | 1 . . . . 1 1 . 2 . 3 2 3 6 6 Engine 11 | 1 . . . . 1 1 . 2 . 2 2 2 . . Core 10 | . . . . . . . . . . 1 . 1 6 2 Reactor 4 | . . . . . . . . . . . . . . 4 Propulsion 44 | 2 1 . . . . . . 3 1 6 1 4 18 8 Treads 20 | . . . . . . . . 2 1 6 1 2 2 6 Leg 6 | . . . . . . . . . . . . 1 5 . Wheel 4 | 2 1 . . . . . . . . . . . 1 . Hover 9 | . . . . . . . . 1 . . . . 8 . Flight 5 | . . . . . . . . . . . . 1 2 2 Utility 82 | 2 1 . 2 3 7 . 1 7 5 9 2 6 12 25 Device 41 | 1 . . . 1 3 . . 4 1 2 1 5 5 18 Storage 16 | 1 1 . 2 2 3 . . 1 2 1 . 1 1 1 Processor 9 | . . . . . 1 . . 1 1 . . . 3 3 Hackware 5 | . . . . . . . . . 1 . 1 . 2 1 Protection 11 | . . . . . . . 1 1 . 6 . . 1 2 Artifact . | . . . . . . . . . . . . . . . Weapon 82 | 2 2 1 . 2 2 1 4 3 2 8 5 6 25 19 Energy Gun 23 | . . . . . . . 1 1 1 3 2 4 7 4 Energy Cannon 11 | . . . . . . . . 1 1 2 . . 4 3 Ballistic Gun 17 | 2 1 . . 1 . . 1 . . 2 . . 5 5 Ballistic Cannon 1 | . . . . . . . . . . . . . 1 . Launcher 3 | . . . . 1 1 . 1 . . . . . . . Special Weapon 5 | . 1 1 . . . . . . . . 1 . 1 1 Impact Weapon . | . . . . . . . . . . . . . . . Slashing Weapon 22 | . . . . . 1 1 1 1 . 1 2 2 7 6 Piercing Weapon . | . . . . . . . . . . . . . . . Special Melee Weapon . | . . . . . . . . . . . . . . . Unidentified Prototypes 7 | . . . . . . . 1 . . . . . 2 4 Parts Lost 69 | . . . . . 1 . 3 . 1 6 10 13 20 15 Power 12 | . . . . . . . 1 . . 2 2 3 . 4 Propulsion 21 | . . . . . . . 1 . 1 1 3 1 10 4 Utility 17 | . . . . . . . . . . 2 3 5 4 3 Weapon 19 | . . . . . 1 . 1 . . 1 2 4 6 4 Highest Loss Streak 11 | . . . . . 1 . 2 . 1 3 9 6 5 11 Average Slot Usage (%) 90 | . 99 100 100 100 96 91 59 74 94 99 98 84 82 89 Engine 6 | . 14 14 14 14 9 15 11 5 13 12 13 6 . . Core 3 | . . . . . . . . . . . . 4 10 6 Treads 8 | . . . . . . . . 13 15 19 19 12 1 14 Leg 1 | . . . . . . . . . . . . . 5 . Wheel 6 | . 28 28 28 28 18 15 6 . . . . . . . Hover 2 | . . . . . . . . 2 3 . . . 9 . Device 12 | . . . . . 16 7 2 24 24 14 13 17 9 17 Storage 14 | . 27 28 28 27 27 30 21 1 6 12 13 11 9 8 Processor 11 | . . . . . 6 7 2 6 7 13 13 13 15 22 Hackware 1 | . . . . . . . . . 4 . 4 4 4 1 Protection 2 | . . . . . . . 3 6 6 10 5 . . 2 Energy Gun 2 | . . . . . . . 4 3 1 9 9 9 1 1 Energy Cannon 1 | . . . . . . . . 3 9 . . . 1 1 Ballistic Gun 7 | . 24 23 14 21 14 . . . . 1 . . 4 5 Special Weapon 1 | . 3 4 14 3 . . . . . . . . . . Slashing Weapon 1 | . . . . . 2 6 . 3 . . 2 1 1 . Naked Turns 28 | . . . . . . . 25 3 . . . . . . Heaviest Build 120 | 11 14 14 38 41 69 80 120 41 57 62 62 57 69 83 Greatest Support 124 | 26 26 26 26 26 26 26 26 48 76 76 60 62 97 124 Greatest Overweight (x) 19 | . . . 1 1 2 3 7 1 1 1 1 3 19 . Average Overweight (x) . | . . . . . 1 2 1 . . . . . . . Largest Inventory Capacity 22 | 6 8 8 16 16 22 22 22 6 10 14 14 14 12 12 Average Capacity 11 | 5 7 8 13 15 16 22 18 4 7 13 14 12 10 11 Most Carried 20 | 6 8 8 10 16 16 17 20 6 10 14 14 13 12 12 Average Carried 10 | 3 7 7 8 11 15 15 15 3 7 13 13 9 10 11 Final Capacity 22 | 6 8 8 16 16 22 22 4 6 10 14 14 4 12 4 Final Carried 17 | 6 8 8 9 16 16 17 4 6 10 14 13 3 12 3 Class Distribution -------------------- 47% | Scavenger-Mutant 40% | Mutant 8% | Bothacker-Mutant 3% | Hauler-Mutant Dominant Class ---------------- Mutant | -10/Materials Mutant | -10/Mines Mutant | -10/Exiles Mutant | -9/Mines Mutant | -8/Materials Hauler-Mutant | -7/Factory Hauler-Mutant | -7/Waste Mutant | -7/Factory Mutant | -6/Factory Scavenger-Mutant | -6/Garrison Scavenger-Mutant | -6/Factory Scavenger-Mutant | -6/Garrison Bothacker-Mutant | -5/Factory Scavenger-Mutant | -4/Factory Resources | -11 -10 -10 -10 -9 -8 -7 -7 -7 -6 -6 -6 -6 -5 -4 ----------- Run | Scr Mat Min Exi Min Mat Fac Was Fac Fac Gar Fac Gar Fac Fac Matter Collected 3707 | 302 54 . 146 222 153 . 118 120 273 275 170 140 864 870 Remotely . | . . . . . . . . . . . . . . . Salvage Created 6071 | 131 112 . . 72 31 . 576 120 786 981 207 215 1270 1570 Parts 284 | 5 8 . . 9 9 . 2 6 25 62 13 8 52 85 Haulers Intercepted 2 | . . . . . . . . . 1 . . . . 1 Recyclers Shooed 5 | . . . . . . . . . 4 . . . . 1 Parts Field Recycled . | . . . . . . . . . . . . . . . Retrieved Matter . | . . . . . . . . . . . . . . . Parts Self-Destructed . | . . . . . . . . . . . . . . . Prevented . | . . . . . . . . . . . . . . . Kills | -11 -10 -10 -10 -9 -8 -7 -7 -7 -6 -6 -6 -6 -5 -4 ------- Run | Scr Mat Min Exi Min Mat Fac Was Fac Fac Gar Fac Gar Fac Fac Combat Hostiles Destroyed 89 | . 2 . . 7 5 . 3 . 6 18 3 3 18 24 Melee 2 | . . . . . . . . . . . . . 2 . Guns 43 | . 2 . . . . . . . . 15 3 3 7 13 Cannons 25 | . . . . . . . . . 6 3 . . 6 10 AOE 15 | . . . . 7 5 . 3 . . . . . . . Classes Destroyed 15 | 2 2 . . 2 2 . 1 . 2 1 1 . 1 1 Worker 2 | . . . . . . . . . . . 1 . . 1 Builder 2 | . . . . . . . . . . . . . . 2 Tunneler 2 | 2 . . . . . . . . . . . . . . Hauler 2 | . . . . . . . . . 1 . . . . 1 Recycler 5 | 1 . . . . . . . 1 2 . . . 1 . Mechanic 1 | . . . . . . . . . . . . . 1 . Operator 2 | . . . . . 1 . . . . . . . 1 . Watcher 3 | . 1 . . . . . . 1 1 . . . . . Swarmer 23 | . . . . 4 4 . . . . 6 . . 4 5 Grunt 30 | . 2 . . 2 . . . . 3 5 2 2 6 8 Brawler 3 | . . . . 1 . . . . 1 1 . . . . Sentry 12 | . . . . . 1 . . . . 5 . 1 3 2 Hunter 5 | . . . . . . . . . 2 . . . 1 2 Programmer 13 | . . . . . . . . . . 1 1 . 4 7 Compactor 3 | . . . . . . . 3 . . . . . . . Best Kill Streak 8 | 2 2 . . 3 3 . 2 2 8 4 3 2 3 6 Combat Bots Only 6 | . 2 . . 3 3 . 2 . 4 4 2 2 3 6 Max Kills in Single Turn 3 | 1 1 . . 3 2 . 1 1 1 2 2 1 2 2 Gunslinging 1 | . . . . . . . . . . 1 . . . . Exploded 3 | . . . . 3 2 . 1 . . . . . . . Melee 1 | . . . . . . . . . . . . . 1 . Uniques/NPCs Destroyed . | . . . . . . . . . . . . . . . Combat | -11 -10 -10 -10 -9 -8 -7 -7 -7 -6 -6 -6 -6 -5 -4 -------- Run | Scr Mat Min Exi Min Mat Fac Was Fac Fac Gar Fac Gar Fac Fac Damage Taken 12375 | . 43 . . 198 69 . 589 . 567 1692 923 1120 2431 4743 Core 2129 | . . . . 32 . . 34 . . 143 138 167 441 1174 Absorbed by Shields 92 | . . . . . . . . . . . . 92 . . Core Remaining (%) 80 | 100 . . . 87 100 . . 95 . . . 47 55 . Volleys Fired 408 | 8 14 14 . 11 10 . 18 3 29 42 12 21 90 136 Largest 2 | 2 2 1 . 1 2 . 1 2 2 2 2 2 2 2 Hottest 170 | 40 100 100 . 100 40 . 33 149 160 160 160 160 170 122 Shots Fired 592 | 16 21 14 . 11 13 . 18 6 55 81 17 27 126 187 Gun 379 | 16 14 . . . 6 . 4 3 . 67 11 27 84 147 Cannon 149 | . . . . . . . . 3 55 14 . . 38 39 Launcher 31 | . . . . 10 7 . 14 . . . . . . . Special 33 | . 7 14 . 1 . . . . . . 6 . 4 1 Kinetic 214 | 16 14 . . . 6 . 4 . . 10 . . 74 90 Thermal 307 | . 7 14 . 1 . . . 6 55 71 11 21 25 96 Explosive 31 | . . . . 10 7 . 14 . . . . . . . Electromagnetic 29 | . . . . . . . . . . . . 6 23 . Robot Hit Streak 35 | 5 12 . . 2 4 . 7 5 15 22 9 8 23 35 Robot Miss Streak 5 | 1 2 . . 1 4 . 2 1 5 2 1 1 4 4 Penetration Max 1 | . . . . . . . . . . . . . 1 1 Secondary Targets 5 | . . . . . . . . . . 4 . . 1 . Max Gunslinging Chain 1 | . . . . . . . . . . 1 . . 1 . Capacitor 69 | . . . . . . . . . . . . . . 69 Shots Hit Robots 427 | 10 9 . . 3 7 . 17 5 40 56 23 23 103 131 Core Hits 221 | 5 7 . . 9 12 . 10 2 20 36 7 8 39 66 Critical Hits 28 | . . . . . . . 1 . . 2 . . 18 7 Critical Kills 12 | . . . . . . . . . . 1 . . 7 4 Critical Parts Destroyed 14 | . . . . . . . . . . 1 . . 11 2 Melee Attacks 93 | . . . . . 3 1 4 11 . 13 18 1 28 14 Impact . | . . . . . . . . . . . . . . . Slashing 93 | . . . . . 3 1 4 11 . 13 18 1 28 14 Piercing . | . . . . . . . . . . . . . . . Sneak Attacks . | . . . . . . . . . . . . . . . Combat Hostiles . | . . . . . . . . . . . . . . . Follow-up Attacks . | . . . . . . . . . . . . . . . Damage Inflicted 12696 | 107 96 . . 596 620 . 1487 89 962 1459 531 434 2241 4074 Guns 5586 | 107 96 . . . 35 . 78 38 . 1227 201 434 732 2638 Cannons 3620 | . . . . . . . . 51 962 232 . . 1216 1159 Explosions 2712 | . . . . 586 511 . 1338 . . . . . . 277 Melee 766 | . . . . . 74 . 71 . . . 328 . 293 . Ramming 12 | . . . . 10 . . . . . . 2 . . . Kinetic 2552 | 107 96 . . . 35 . 78 . . 256 . . 503 1477 Thermal 6109 | . . . . . . . . 89 962 1203 201 372 775 2507 Explosive 2435 | . . . . 586 511 . 1338 . . . . . . . Electromagnetic 822 | . . . . . . . . . . . . 62 670 90 Impact . | . . . . . . . . . . . . . . . Slashing 766 | . . . . . 74 . 71 . . . 328 . 293 . Piercing . | . . . . . . . . . . . . . . . Highest Corruption 15 | . 3 3 3 3 2 . 15 15 2 3 3 3 6 11 Average Corruption 4 | . 2 3 3 3 2 . 10 11 2 2 3 3 4 6 Corruption Purged 18 | . . . . . . . . 7 . 2 . . . 9 Effects 161 | . 2 9 5 17 1 . 10 27 1 12 8 4 16 49 Message Errors 32 | . 1 2 . 4 . . . 6 . 2 3 1 3 10 Matter Fused 30 | . . 5 3 4 . . 1 4 . 3 1 1 3 5 Heat Flow Errors 22 | . 1 . 1 4 . . 3 2 . 1 1 . 3 6 Energy Discharges 18 | . . 2 1 3 . . . 1 1 2 1 1 1 5 Parts Rejected 1 | . . . . . . . 1 . . . . . . . Data Loss (minor) 22 | . . . . 2 1 . 1 5 . 3 1 . 3 6 Data Loss (major) 1 | . . . . . . . . 1 . . . . . . Misfires 3 | . . . . . . . . . . . . . 1 2 Alerts 1 | . . . . . . . . 1 . . . . . . Misdirections 7 | . . . . . . . 1 4 . . . . . 2 Targeting Errors 20 | . . . . . . . 3 3 . 1 . 1 2 10 Weapon Failures 4 | . . . . . . . . . . . 1 . . 3 Overload Shots . | . . . . . . . . . . . . . . . Overflow Damage 275 | . . . . . 66 . 33 . 23 1 . . 27 125 Projectiles 69 | . . . . . . . . . 23 1 . . 26 19 Explosions 199 | . . . . . 60 . 33 . . . . . . 106 Melee 7 | . . . . . 6 . . . . . . . 1 . Knockbacks . | . . . . . . . . . . . . . . . Impact . | . . . . . . . . . . . . . . . Kinetic . | . . . . . . . . . . . . . . . Secondary . | . . . . . . . . . . . . . . . Self-Inflicted Damage 367 | . . . . 61 34 . 159 . . . . . . 113 Shots 10 | . . . . 2 1 . 5 . . . . . . 2 Rammed 4 | . . . . 1 . . . . . . 2 . 1 . Targets Rammed 4 | . . . . 1 . . . . . . 2 . 1 . Kicked . | . . . . . . . . . . . . . . . Crushed . | . . . . . . . . . . . . . . . Highest Temperature 350 | . 80 80 144 276 5 . 350 199 198 208 232 91 153 304 Average Temperature 88 | . 33 41 74 77 5 . 206 69 83 78 44 35 70 124 Received Heat Transfer 1929 | . 24 . . 42 9 . . . 72 405 303 282 498 294 Effects 5 | . . . . . . . 1 . . . . . . 4 Shutdowns 1 | . . . . . . . 1 . . . . . . . Energy Bleed 1 | . . . . . . . . . . . . . . 1 Interference 3 | . . . . . . . . . . . . . . 3 Siege Activations . | . . . . . . . . . . . . . . . Robots Corrupted 3 | . . . . . . . . . . . . . 3 . Combat Hostiles 3 | . . . . . . . . . . . . . 3 . Parts Fried 3 | . . . . . . . . . . . . . 3 . Impact Corruptions . | . . . . . . . . . . . . . . . Robots Melted 1 | . . . . . . . . . . . . . . 1 Combat Hostiles 1 | . . . . . . . . . . . . . . 1 Parts Melted 21 | . . . . 1 . . . 2 1 . . 1 1 15 Heat Transferred 9140 | . . . . . . . . 174 1900 1829 296 606 634 3701 Parts Sabotaged . | . . . . . . . . . . . . . . . Parts Stolen . | . . . . . . . . . . . . . . . Parts Stripped . | . . . . . . . . . . . . . . . Power Chain Reactions . | . . . . . . . . . . . . . . . Missiles Intercepted . | . . . . . . . . . . . . . . . Alert | -11 -10 -10 -10 -9 -8 -7 -7 -7 -6 -6 -6 -6 -5 -4 ------- Run | Scr Mat Min Exi Min Mat Fac Was Fac Fac Gar Fac Gar Fac Fac Peak Influence 766 | 15 66 25 . 234 262 120 66 38 173 766 401 138 225 348 Average Influence 125 | 5 39 25 . 61 40 119 46 26 69 483 203 101 64 131 Maximum Alert Level 3 | . . . . 1 1 . . . . 3 2 . 1 1 Low Security (%) 80 | 100 100 100 . 86 97 100 100 100 100 7 77 100 95 70 Level 1 11 | . . . . 13 2 . . . . 24 4 . 4 29 Level 2 5 | . . . . . . . . . . 46 18 . . . Level 3 2 | . . . . . . . . . . 20 . . . . Level 4 . | . . . . . . . . . . . . . . . Level 5 . | . . . . . . . . . . . . . . . High Security . | . . . . . . . . . . . . . . . Max Security . | . . . . . . . . . . . . . . . Squads Dispatched 18 | . . . . 1 2 . . 1 1 . 2 . 3 8 Investigation 2 | . . . . 1 . . . . 1 . . . . . Extermination 8 | . . . . . . . . 1 . . . . 2 5 Reinforcement 7 | . . . . . 2 . . . . . 1 . 1 3 Assault . | . . . . . . . . . . . . . . . Garrison 1 | . . . . . . . . . . . 1 . . . Intercept . | . . . . . . . . . . . . . . . Construction Impeded 1 | . . . . . 1 . . . . . . . . . Haulers Reinforced 2 | . . . . . . . . . . . . . . 2 Stealth | -11 -10 -10 -10 -9 -8 -7 -7 -7 -6 -6 -6 -6 -5 -4 --------- Run | Scr Mat Min Exi Min Mat Fac Was Fac Fac Gar Fac Gar Fac Fac Distress Signals 4 | . 1 . . . . . . . 1 . . . . 2 Communications Jammed . | . . . . . . . . . . . . . . . Distress Signals . | . . . . . . . . . . . . . . . Times Spotted 159 | . 3 . . 11 17 . 6 2 7 23 6 8 29 47 Peak Tracking Total 12 | . 3 . . 3 6 . 3 1 5 6 2 7 4 12 Tactical Retreats 14 | . . . . 1 1 . . . . 3 . 2 3 4 Traps | -11 -10 -10 -10 -9 -8 -7 -7 -7 -6 -6 -6 -6 -5 -4 ------- Run | Scr Mat Min Exi Min Mat Fac Was Fac Fac Gar Fac Gar Fac Fac Traps Triggered 10 | . 2 . . 1 1 1 . . . 2 . 1 2 . Indirectly . | . . . . . . . . . . . . . . . Trap Hack Attempts . | . . . . . . . . . . . . . . . Triggered . | . . . . . . . . . . . . . . . Disarmed . | . . . . . . . . . . . . . . . Reprogrammed . | . . . . . . . . . . . . . . . Reused . | . . . . . . . . . . . . . . . Traps Extracted . | . . . . . . . . . . . . . . . Installed . | . . . . . . . . . . . . . . . Triggered . | . . . . . . . . . . . . . . . Machines | -11 -10 -10 -10 -9 -8 -7 -7 -7 -6 -6 -6 -6 -5 -4 ---------- Run | Scr Mat Min Exi Min Mat Fac Was Fac Fac Gar Fac Gar Fac Fac Machines Disabled 12 | . . . . 1 4 . . 1 . 2 . 1 . 3 Max in Single Turn 2 | . . . . 1 2 . . 1 . 1 . 1 . 2 Garrison Access 2 | . . . . . . . . . . . . . 2 . Garrison Relay 3 | . . . . . . . . . . 2 . 1 . . Machines Sabotaged . | . . . . . . . . . . . . . . . Garrisons Compromised . | . . . . . . . . . . . . . . . Overloaded Fab Kills . | . . . . . . . . . . . . . . . Fab Network Shutdowns . | . . . . . . . . . . . . . . . Hacking | -11 -10 -10 -10 -9 -8 -7 -7 -7 -6 -6 -6 -6 -5 -4 --------- Run | Scr Mat Min Exi Min Mat Fac Was Fac Fac Gar Fac Gar Fac Fac Machines Accessed 25 | . . . . 2 3 . . 1 2 . 2 . 9 6 Terminals 14 | . . . . 1 3 . . 1 . . 1 . 4 4 Fabricators 2 | . . . . . . . . . . . . . 1 1 Repair Stations 2 | . . . . . . . . . . . . . 2 . Recycling Units 1 | . . . . . . . . . 1 . . . . . Scanalyzers 1 | . . . . . . . . . . . . . . 1 Garrison Access 4 | . . . . . . . . . 1 . 1 . 2 . Total Hacks 58 | . . . . 5 9 . . 2 5 . 4 . 21 12 Successful 30 | . . . . 2 6 . . 2 3 . 2 . 11 4 Failed 28 | . . . . 3 3 . . . 2 . 2 . 10 8 Catastrophic 6 | . . . . 2 1 . . . . . . . 2 1 Database Lockouts . | . . . . . . . . . . . . . . . Manual 16 | . . . . 3 5 . . . . . 2 . 2 4 Terminals 37 | . . . . 4 9 . . 2 . . 3 . 11 8 Fabricators 4 | . . . . . . . . . . . . . 2 2 Repair Stations 5 | . . . . . . . . . . . . . 5 . Recycling Units 2 | . . . . . . . . . 2 . . . . . Scanalyzers 2 | . . . . . . . . . . . . . . 2 Garrison Access 7 | . . . . . . . . . 3 . 1 . 3 . Terminal Hacks 18 | . . . . 2 6 . . 2 . . 1 . 4 3 Part Schematic 1 | . . . . . 1 . . . . . . . . . Robot Analysis 1 | . . . . . . . . . . . . . 1 . Prototype ID Bank 3 | . . . . . 1 . . . . . 1 . 1 . Open Door 1 | . . . . 1 . . . . . . . . . . Branch Access Points 3 | . . . . . 1 . . 1 . . . . . 1 Terminal Index 1 | . . . . . . . . . . . . . 1 . Unreport Threat 2 | . . . . . 1 . . 1 . . . . . . Locate Traps 3 | . . . . . . . . . . . . . 1 2 Zone Layout 3 | . . . . 1 2 . . . . . . . . . Fabricator Hacks 3 | . . . . . . . . . . . . . 2 1 Load Schematic 2 | . . . . . . . . . . . . . 1 1 Build 1 | . . . . . . . . . . . . . 1 . Repair Station Hacks 2 | . . . . . . . . . . . . . 2 . Scan Component 1 | . . . . . . . . . . . . . 1 . Repair 1 | . . . . . . . . . . . . . 1 . Recycling Unit Hacks 2 | . . . . . . . . . 2 . . . . . Process 1 | . . . . . . . . . 1 . . . . . Retrieve Matter 1 | . . . . . . . . . 1 . . . . . Scanalyzer . | . . . . . . . . . . . . . . . Garrison Access Hacks 5 | . . . . . . . . . 1 . 1 . 3 . Unlock Access 2 | . . . . . . . . . 1 . 1 . . . Seal Access 2 | . . . . . . . . . . . . . 2 . Coupler Status 1 | . . . . . . . . . . . . . 1 . Unauthorized Hacks . | . . . . . . . . . . . . . . . Terminals . | . . . . . . . . . . . . . . . Fabricators . | . . . . . . . . . . . . . . . Repair Stations . | . . . . . . . . . . . . . . . Recycling Units . | . . . . . . . . . . . . . . . Scanalyzers . | . . . . . . . . . . . . . . . Garrison Access . | . . . . . . . . . . . . . . . Data Cores Recovered 2 | . . . . . 1 . . . . . . . 1 . Used . | . . . . . . . . . . . . . . . Hacking Detections 20 | . . . . 1 3 . . 1 2 . 1 . 6 6 Full Trace Events 2 | . . . . 1 . . . . 1 . . . . . Feedback Events . | . . . . . . . . . . . . . . . Feedback Blocked . | . . . . . . . . . . . . . . . Robot Schematics Acquired . | . . . . . . . . . . . . . . . Robots Built . | . . . . . . . . . . . . . . . Matter . | . . . . . . . . . . . . . . . Time . | . . . . . . . . . . . . . . . Total Robot Build Rating . | . . . . . . . . . . . . . . . Part Schematics Acquired 1 | . . . . . 1 . . . . . . . . . Parts Built 1 | . . . . . . . . . . . . . 1 . Matter 102 | . . . . . . . . . . . . . 102 . Time 51 | . . . . . . . . . . . . . 51 . Total Part Build Rating 1 | . . . . . . . . . . . . . 1 . Parts Repaired 1 | . . . . . . . . . . . . . 1 . Time 22 | . . . . . . . . . . . . . 22 . Parts Recycled . | . . . . . . . . . . . . . . . Recycled Matter 13 | . . . . . . . . . 13 . . . . . Retrieved Matter 13 | . . . . . . . . . 13 . . . . . Retrieved Components . | . . . . . . . . . . . . . . . Parts Scanalyzed . | . . . . . . . . . . . . . . . Part Schematics Acquired . | . . . . . . . . . . . . . . . Parts Damaged . | . . . . . . . . . . . . . . . Bothacking | -11 -10 -10 -10 -9 -8 -7 -7 -7 -6 -6 -6 -6 -5 -4 ------------ Run | Scr Mat Min Exi Min Mat Fac Was Fac Fac Gar Fac Gar Fac Fac Used RIF Installer 2 | . . . . . . . . . . 1 . 1 . . Patrol Navigation 1 | . . . . . . . . . . . . 1 . . Robots Hacked 3 | . . . . . . . . . . . 1 . 1 1 Non-combat 2 | . . . . . . . . . . . 1 . 1 . Combat 1 | . . . . . . . . . . . . . . 1 Robot Hacks Applied 8 | . . . . . . . . . . . 5 . 2 1 no_distress 1 | . . . . . . . . . . . 1 . . . purge_threat 3 | . . . . . . . . . . . 2 . 1 . locate_traps 1 | . . . . . . . . . . . 1 . . . block_reporting 1 | . . . . . . . . . . . . . 1 . link_fov 1 | . . . . . . . . . . . 1 . . . formatsys_high 1 | . . . . . . . . . . . . . . 1 Relay Couplers Released 17 | . . . . . . . . . . 10 . 4 3 . Machine Destruction 17 | . . . . . . . . . . 10 . 4 3 . Attached 3 | . . . . . . . . . . . 1 . 1 1 Robots Rewired . | . . . . . . . . . . . . . . . Allies Hacked . | . . . . . . . . . . . . . . . Hacks Repelled . | . . . . . . . . . . . . . . . Allies | -11 -10 -10 -10 -9 -8 -7 -7 -7 -6 -6 -6 -6 -5 -4 -------- Run | Scr Mat Min Exi Min Mat Fac Was Fac Fac Gar Fac Gar Fac Fac Total Allies 6 | . . . . 5 . . . . . . . . . 1 Largest Group 3 | . . . . 3 3 1 1 . . . . . . 1 Highest-Rated Group 49 | . . . . 40 40 16 16 . . . . . . 49 Highest-Rated Ally 49 | . . . . 31 16 16 16 . . . . . . 49 Total Orders 1 | . . . . . . . 1 . . . . . . . GOTO 1 | . . . . . . . 1 . . . . . . . Ally Attacks 48 | . . . . 13 28 . 2 . . . . . . 5 Total Damage 626 | . . . . 120 279 . 17 . . . . . . 210 Kills 7 | . . . . 4 1 . . . . . . . . 2 Allies Corrupted . | . . . . . . . . . . . . . . . Allies Melted . | . . . . . . . . . . . . . . . Intel | -11 -10 -10 -10 -9 -8 -7 -7 -7 -6 -6 -6 -6 -5 -4 ------- Run | Scr Mat Min Exi Min Mat Fac Was Fac Fac Gar Fac Gar Fac Fac Robot Analysis Total 1 | . . . . . . . . . . . . . 1 . Derelict Logs Recovered 2 | . . 1 . 1 . . . . . . . . . . Drone Launches . | . . . . . . . . . . . . . . . Drone Recoveries . | . . . . . . . . . . . . . . . Exploration | -11 -10 -10 -10 -9 -8 -7 -7 -7 -6 -6 -6 -6 -5 -4 ------------- Run | Scr Mat Min Exi Min Mat Fac Was Fac Fac Gar Fac Gar Fac Fac Turns Passed 8643 | 93 223 271 248 865 515 107 136 623 351 901 374 461 1688 1787 Spaces Moved 5242 | 61 165 199 249 746 277 82 90 366 143 402 160 271 1195 836 Core 145 | 4 . . . . . . 51 69 . . . . 1 20 Treads 2089 | . . . . . . . . 297 143 402 160 149 162 776 Legs 271 | . . . . . . . . . . . . 16 255 . Wheels 1821 | 57 165 199 249 746 277 82 39 . . . . . 7 . Hover 697 | . . . . . . . . . . . . . 697 . Flight 219 | . . . . . . . . . . . . 106 73 40 Fastest Speed 40 | 50 90 90 90 90 100 110 50 50 160 160 160 40 40 40 Average Speed 120 | 88 90 90 96 99 109 118 89 144 160 168 164 118 95 156 Slowest Speed 1000 | 100 90 90 100 100 110 120 170 160 180 180 180 210 1000 166 Overloaded Moves . | . . . . . . . . . . . . . . . Propulsion Burnouts . | . . . . . . . . . . . . . . . Robots Hopped . | . . . . . . . . . . . . . . . Cave-ins Triggered . | . . . . . . . . . . . . . . . Exploration Rate (%) 30 | 4 23 23 56 98 27 2 77 7 3 52 5 36 25 22 Regions Visited 14 Branch Regions 3 Pre-discovered Areas . | . . . . . . . . . . . . . . . Known Exits Taken 4 | . . . . . 1 . . . 1 . 1 . 1 . Unknown Exits Taken 6 | 1 1 1 1 1 . . . 1 . . . . . . Scrap Searched 3 | . . . . 3 . . . . . . . . . . Spaces Dug 95 | . 7 9 . 10 17 1 . 11 . . 6 . 20 14 Terrain Destroyed 346 | . 7 10 . 89 81 1 64 11 . . 6 . 26 51 Melee 53 | . . . . . 1 1 . 11 . . 6 . 20 14 Projectile 35 | . 7 10 . 1 . . . . . . . . 6 11 AOE 258 | . . . . 88 80 . 64 . . . . . . 26 Actions | -11 -10 -10 -10 -9 -8 -7 -7 -7 -6 -6 -6 -6 -5 -4 --------- Run | Scr Mat Min Exi Min Mat Fac Was Fac Fac Gar Fac Gar Fac Fac Total 6851 | 83 206 248 257 853 474 91 120 435 216 529 226 380 1553 1180 Wait 593 | . 14 33 . 77 161 3 . 29 8 9 19 50 114 76 Move 5228 | 60 164 198 248 745 276 82 89 365 142 400 160 269 1194 836 Hop . | . . . . . . . . . . . . . . . Pick Up 129 | 8 5 1 3 9 7 3 1 8 15 16 2 8 26 17 Fast Attach 108 | 5 1 . . 2 2 . 2 11 4 13 2 5 38 23 Attach 55 | 2 . . . . 4 2 1 3 2 5 2 12 8 14 Detach 12 | . . . . 1 . . 3 . . 1 . . 2 5 Swap 71 | . 3 1 2 3 4 . 2 1 2 9 6 2 15 21 Drop 136 | . 5 1 4 4 7 . . 4 14 21 4 10 24 38 Fire 408 | 8 14 14 . 11 10 . 18 3 29 42 12 21 90 136 Melee 93 | . . . . . 3 1 4 11 . 13 18 1 28 14 Ram 2 | . . . . 1 . . . . . . . . 1 . Kick . | . . . . . . . . . . . . . . . Crush 1 | . . . . . . . . . . . 1 . . . Escape Stasis 15 | . . . . . . . . . . . . 2 13 . Rewire . | . . . . . . . . . . . . . . . Trap . | . . . . . . . . . . . . . . . Miscellaneous . | . . . . . . . . . . . . . . . Route ------- -11/Scrapyard -10/Materials -10/Mines (discovered 2 exits: [*Mat] / [*Exi]) -10/Exiles -9/Mines (discovered 2 exits: *Mat x2) -8/Materials -7/Factory -7/Waste -7/Factory (discovered 4 exits: *Fac / Sto / Low x2) -6/Factory -6/Garrison -6/Factory (discovered 2 exits: *Fac / Gar) -6/Garrison -5/Factory -4/Factory (discovered 5 exits: *Res x2 / *Upp x2 / Arm) History --------- Turn | Location | Event 13 | -11/Scrapyard | Discovered new exit (range 15) 94 | -11/Scrapyard | Entered Materials 245 | -10/Materials | Discovered new exit (range 6) 306 | -10/Materials | Build established: Mutant 317 | -10/Materials | Entered Mines 340 | -10/Mines | Deemed a non-threat by the Exiles lab entrance 341 | -10/Mines | Discovered new exit (range 5) 384 | -10/Mines | Discovered new exit (range 10) 392 | -10/Mines | Received a Rocket Launcher from a helpful Derelict 448 | -10/Mines | Learned Materials stockpile data 588 | -10/Mines | Entered Exiles 610 | -10/Exiles | Met 8R-AWN 625 | -10/Exiles | Met EX-HEX 684 | -10/Exiles | Met EX-DEC 823 | -10/Exiles | Discovered new exit (range 15) 836 | -10/Exiles | Entered Mines 844 | -9/Mines | Discovered new exit (range 11) 844 | -9/Mines | Discovered new exit (range 13) 882 | -9/Mines | Learned location of 1 exit from Materials 1322 | -9/Mines | Met a Derelict who couldn't figure out how to use a Trap Extractor 1436 | -9/Mines | A weapon hastily lodged in a ceiling crevice suddenly fell to the ground 1504 | -9/Mines | Assisted by bots powering up and referring to "LRC-V3" 1701 | -9/Mines | Entered Materials 1701 | -8/Materials | Accompanied by 3 allies 1701 | -8/Materials | Evolved 4 slots: Utility x4 1702 | -8/Materials | Identified exit to Factory 2216 | -8/Materials | Entered Factory 2216 | -7/Factory | Accompanied by 1 ally 2216 | -7/Factory | Evolved 2 slots: Power x1, Propulsion x1 2323 | -7/Factory | Sucked down chute 2323 | -7/Factory | Entered Waste 2338 | -7/Waste | EMP discharged 2338 | -7/Waste | System corruption reached 10% 2348 | -7/Waste | Spotted C-40 Crusher 2350 | -7/Waste | 1 allies followed down the chute 2355 | -7/Waste | Destroyed C-40 Crusher 2366 | -7/Waste | Found Damper Plating 2383 | -7/Waste | Spotted C-40 Crusher 2389 | -7/Waste | Spotted C-40 Crusher 2389 | -7/Waste | Spotted C-40 Crusher 2393 | -7/Waste | Destroyed C-40 Crusher 2407 | -7/Waste | Crushed by Compactor (0 parts destroyed, 2 dropped) 2411 | -7/Waste | Destroyed C-40 Crusher 2418 | -7/Waste | Crushed by Compactor (1 part destroyed) 2427 | -7/Waste | Crushed by Compactor (0 parts destroyed, 1 dropped) 2433 | -7/Waste | Crushed by Compactor (0 parts destroyed, 1 dropped) 2434 | -7/Waste | Released all parts (4) 2434 | -7/Waste | Spotted C-40 Crusher 2438 | -7/Waste | EMP discharged 2450 | -7/Waste | Spotted C-40 Crusher 2451 | -7/Waste | Discovered new exit (range 16) 2459 | -7/Waste | Entered Factory 3024 | -7/Factory | Discovered new exit (range 13) 3027 | -7/Factory | Identified exit to Storage 3027 | -7/Factory | Identified exit to Lower Caves 3082 | -7/Factory | Entered another Factory area 3082 | -6/Factory | Evolved 2 slots: Utility x2 3420 | -6/Factory | Identified exit to Garrison 3433 | -6/Factory | Entered Garrison 3488 | -6/Garrison | Triggered checkpoint 3602 | -6/Garrison | Triggered checkpoint 3719 | -6/Garrison | Build established: Scavenger-Mutant 3725 | -6/Garrison | Garrison Relay disabled 3822 | -6/Garrison | Triggered checkpoint 3865 | -6/Garrison | Lost 3 parts (2p1n) 4025 | -6/Garrison | Spotted B-75 Beast 4025 | -6/Garrison | Spotted B-75 Beast 4138 | -6/Garrison | Triggered checkpoint 4175 | -6/Garrison | Garrison Relay disabled 4304 | -6/Garrison | Discovered new exit (range 8) 4325 | -6/Garrison | Installed Relay Interface Framework 4334 | -6/Garrison | Entered Factory 4657 | -6/Factory | Identified exit to Garrison 4663 | -6/Factory | Discovered new exit (range 3) 4693 | -6/Factory | Garrison activated, responded to threat 4708 | -6/Factory | Entered Garrison 4738 | -6/Garrison | Lost 9 parts (2p3n3u1w) 4752 | -6/Garrison | Triggered checkpoint 4816 | -6/Garrison | Triggered checkpoint 4880 | -6/Garrison | Garrison Relay disabled 4938 | -6/Garrison | Triggered checkpoint 4972 | -6/Garrison | Spotted B-75 Beast 5074 | -6/Garrison | Lost 6 parts (1p1n3u1w) 5158 | -6/Garrison | Lost 6 parts (2p2u2w) 5161 | -6/Garrison | Core integrity fell below 50% 5161 | -6/Garrison | Discovered new exit (range 10) 5167 | -6/Garrison | Expanded RIF knowledge: Patrol Navigation 5169 | -6/Garrison | Entered Factory 5169 | -5/Factory | Evolved 2 slots: Propulsion x1, Utility x1 5411 | -5/Factory | Build established: Mutant 5427 | -5/Factory | Fabricated Hcp. Storage Unit? 5772 | -5/Factory | Repaired Chainsword 5796 | -5/Factory | Build established: Bothacker-Mutant 6007 | -5/Factory | Lost 3 parts (2n1w) 6076 | -5/Factory | Lost 3 parts (2n1w) 6159 | -5/Factory | Lost 5 parts (3n1u1w) 6477 | -5/Factory | Lost 5 parts (2n1u2w) 6759 | -5/Factory | Build established: Scavenger-Mutant 6845 | -5/Factory | Discovered new exit (range 8) 6855 | -5/Factory | Identified exit to Factory 6857 | -5/Factory | Entered another Factory area 6857 | -4/Factory | Evolved 2 slots: Utility x2 7345 | -4/Factory | Discovered new exit (range 15) 7369 | -4/Factory | Identified exit to Research 7931 | -4/Factory | System corruption reached 10% 8045 | -4/Factory | Found Quantum Capacitor 8409 | -4/Factory | Identified exit to Upper Caves 8409 | -4/Factory | Identified exit to Armory 8474 | -4/Factory | Discovered exit to Research (range 7) 8602 | -4/Factory | Released all parts (10) 8606 | -4/Factory | Core integrity fell below 50% 8615 | -4/Factory | Core integrity fell below 20% 8631 | -4/Factory | Lost 11 parts (3p4n2u2w) 8644 | -4/Factory | Destroyed by Y-64 Sentinel with KE Penetrator Last Messages --------------- 08608_ Slug penetrates Manufacturing Mainframe. 08609_ Penetrated by Slug. 08610_ S-27 Virus destroyed. 08611_ Penetrated by Slug. 08611_ Slug penetrates Wall. 08612_ U-05 Engineer lays Concrete. 08612_ U-05 Engineer suffers critical hit. 08614_ System corrupted: Energy discharge (-30). 08614_ U-05 Engineer destroyed. 08614_ U-05 Engineer builds a Wall. 08615_ Penetrated by Slug. 08615_ Slug penetrates Wall. 08616_ Acquired Field Propulsion Array. 08618_ Penetrated by Slug. 08618_ U-05 Engineer builds a Wall. 08630_ System corrupted: Heat flow error (+252). 08641_ A-15 Conveyor exits level. 08642_ Penetrated by Slug. 08644_ Acquired Nuclear Pulse Array. 08644_ Penetrated by Slug. Map ----- +----------------------------------------------------+ | ##?????# """ """ """??????????????????????? | | ##????# ??????????????????????? | | # ##???# """ """ """ ""???????????????????? | | ##"##### """ """ """ """? ????????????????? | | """ """ """ """ ????????????????? | | ^ #???????????????? | | #???????????????? | | #???????????????? | | #???????????????? | | #???????????????? | | """" """" """" """" ######?????????????????? | | ! """" """" """" ""F" #??????????????????????? | | """" """" """" "" ###????????????????????? | | k #????????????????????? | | #????????????????????? | | #????????????????????? | | ### #????????????????????? | | #?# #????????????????????? | | ??#########+##### #????????????????????? | | ? ????????????????# #????????????????????? | | ??????????????????????# #????????????????????? | | ??????????????????????# #????????????????????? | | ??????????????????????# #????????????????????? | | ??????????????????????# #????????????????????? | | ????????????????????### ###??????????????????? | | ????????????????????# @ #??????????????????? | | ????????????????????# ????????????? | | ????????????????????# ????????? | | ????????????????????#! Y ?????????? | | ????????????????????# > ?????????? | | ????????????????????# ??????????? | | ????????????????????# ??????????? | | ????????????????????# ??????????? | | ????????????????????# ########???????????? | | ????????????????????#####+#####??????????????????? | | ?????????????????????????????????????????????????? | | ?????????????????????????????????????????????????? | | ?????????????????????????????????????????????????? | | ?????????????????????????????????????????????????? | | ?????????????????????????????????????????????????? | | ?????????????????????????????????????????????????? | | ?????????????????????????????????????????????????? | | ?????????????????????????????????????????????????? | | ?????????????????????????????????????????????????? | | | | | | | | | | | | | +----------------------------------------------------+ Best States ------------- Heat Dissipation 100 Coolant Potential 65 Energy Generation 41 Energy Capacity 720 Matter Stores 500 Matter Capacity 500 Sight Range 16 Terrain Scan Range 16 Terrain Scan Density 210 Armor Coverage 1200 Resistance: EM 90 Phase Shifting 10 Evasion (%) 62 Targeting Accuracy 5 Target Analysis 6 Core Analysis 8 Recoil Reduction 4 Defensive Hacking 10 Item Schematics ----------------- Hcp. Storage Unit | -8/Materials | Hacked Robot Schematics ------------------ None Fabricated ------------ Hcp. Storage Unit | x1 | -5/Factory Alien Tech Used ----------------- None Achievements -------------- None Challenges ------------ None Game ------ Seed SurgeCryofiberFlamer Manual? 0 Play Time 01:46:10 Cumulative 137.4 hours Start 2020.08.26 @ 16:11:17 End 2020.08.26 @ 18:22:16 Sessions 1 Manual Loads 0 Difficulty Rogue Special Mode None Game No. 164 Rogue 164 Adventurer 0 Explorer 0 Win Type - Total 2 Types 2/0/0/0/0/0/0 Lore% 51 Gallery% 67 Achievement% 47 Wizard Run 0 Options --------- ASCII 0 Keyboard 0 Movement Numpad Keybinds 0 Fullscreen 2 Font 24/Smallcaps Map View 76x50 Tactical HUD 1 Map Filters NONE Filters NONE Steam 1 RUN: c851197f-a9d1-447c-83dd-8918e343d801